fUSD/lending_fUSD_20240804
["ID","MTS","AMOUNT","RATE_DAILY","PERIOD"]
[334168771,1722805924040,-500.0,0.00023506,9]
[334168772,1722805924051,-910.69,0.00023506,9]
[334168773,1722805924179,-500.0,0.00023506,9]
[334168774,1722805924197,-500.0,0.00023506,9]
[334168775,1722805924209,-933.39,0.00023506,9]
[334168776,1722805924219,-500.0,0.00023506,9]
[334168777,1722805924230,-500.0,0.00023506,9]
[334168778,1722805924240,-500.0,0.00023506,9]
[334168779,1722805924250,-980.26,0.00023506,9]
[334168780,1722805924261,-500.0,0.00023506,9]
[334168781,1722805924271,-500.0,0.00023506,9]
[334168782,1722805924281,-500.0,0.00023506,9]
[334168783,1722805924291,-500.0,0.00023506,9]
[334168784,1722805924301,-500.0,0.00023506,9]
[334168785,1722805924310,-500.0,0.00023506,9]
[334168786,1722805924321,-500.0,0.00023506,9]
[334168787,1722805924331,-500.0,0.00023506,9]
[334168788,1722805924341,-600.68,0.00023506,9]
[334168789,1722805924351,-500.0,0.00023506,9]
[334168790,1722805924361,-500.0,0.00023506,9]
[334168791,1722805924371,-551.7,0.00023506,9]
[334168792,1722805924382,-500.0,0.00023506,2]
[334168793,1722805924392,-500.0,0.00023506,9]
[334168794,1722805924402,-457.29,0.00023506,9]
[334168795,1722805924411,-500.0,0.00023506,9]
[334168796,1722805924421,-500.0,0.00023506,9]
[334168797,1722805924431,-519.53028165,0.00023506,9]
[334168798,1722805924441,-500.0,0.00023506,9]
[334168799,1722805924451,-500.0,0.00023506,9]
[334168800,1722805924461,-405.21925872,0.00023506,9]
[334168801,1722805924471,-500.0,0.00023506,9]
[334168802,1722805924481,-500.0,0.00023506,9]
[334168803,1722805924492,-500.0,0.00023506,9]
[334168804,1722805924502,-321.06220028,0.00023506,9]
[334168805,1722805924512,-765.42,0.00023506,9]
[334168806,1722805924522,-500.0,0.00023506,9]
[334168807,1722805924533,-500.0,0.00023506,9]
[334168808,1722805924542,-500.0,0.00023506,9]
[334168809,1722805924552,-500.0,0.00023506,9]
[334168810,1722805924563,-500.0,0.00023506,9]
[334168811,1722805924574,-500.0,0.00023506,9]
[334168812,1722805924587,-492.88017603,0.00023506,9]
[334168813,1722805924597,-538.2988519,0.00023506,9]
[334168814,1722805924607,-500.0,0.00023506,9]
[334168815,1722805924617,-500.0,0.00023506,9]
[334168816,1722805924628,-212.96,0.00023506,9]
[334168817,1722805924639,-500.0,0.00023506,9]
[334168818,1722805924649,-500.0,0.00023506,9]
[334168819,1722805924660,-500.0,0.00023506,9]
[334168820,1722805924670,-519.29,0.00023506,9]
[334168821,1722805924680,-200.03,0.00023506,9]
[334168822,1722805924691,-500.0,0.00023506,9]
[334168823,1722805924701,-1821.74,0.00023506,9]
[334168824,1722805924711,-500.0,0.00023506,9]
[334168825,1722805924721,-500.0,0.00023506,9]
[334168826,1722805924730,-500.0,0.00023506,9]
[334168827,1722805924741,-630.21,0.00023506,9]
[334168828,1722805924751,-2016.72,0.00023506,9]
[334168829,1722805924761,-556.34,0.00023506,9]
[334168830,1722805924771,-500.0,0.00023506,9]
[334168831,1722805924780,-574.30670575,0.00023506,9]
[334168832,1722805924791,-500.0,0.00023506,9]
[334168833,1722805924800,-500.0,0.00023506,9]
[334168834,1722805924811,-500.0,0.00023506,9]
[334168835,1722805924821,-1044.8,0.00023506,9]
[334168836,1722805924832,-333.36788227,0.00023506,9]
[334168837,1722805924842,-500.0,0.00023506,9]
[334168838,1722805924852,-500.0,0.00023506,9]
[334168839,1722805924862,-846.33,0.00023506,9]
[334168840,1722805924872,-500.0,0.00023506,9]
[334168841,1722805924884,-765.93,0.00023506,9]
[334168842,1722805924895,-513.77,0.00023506,9]
[334168843,1722805924905,-823.05,0.00023506,9]
[334168844,1722805924915,-500.0,0.00023506,9]
[334168845,1722805924926,-500.0,0.00023506,9]
[334168846,1722805924936,-848.47,0.00023506,9]
[334168847,1722805924946,-1092.87,0.00023506,9]
[334168848,1722805924956,-500.0,0.00023506,9]
[334168849,1722805924966,-500.0,0.00023506,9]
[334168850,1722805924976,-500.0,0.00023506,9]
[334168851,1722805924987,-500.0,0.00023506,9]
[334168852,1722805924997,-500.0,0.00023506,9]
[334168853,1722805925007,-500.0,0.00023506,9]
[334168854,1722805925019,-500.0,0.00023506,9]
[334168855,1722805925029,-500.0,0.00023506,9]
[334168856,1722805925039,-791.06,0.00023506,9]
[334168857,1722805925049,-500.0,0.00023506,9]
[334168858,1722805925152,-500.0,0.00023506,9]
[334168859,1722805925163,-518.72271369,0.00023506,9]
[334168860,1722805925173,-974.71,0.00023506,9]
[334168861,1722805925183,-500.0,0.00023506,9]
[334168862,1722805925193,-500.0,0.00023506,9]
[334168863,1722805925203,-500.0,0.00023506,9]
[334168864,1722805925213,-500.0,0.00023506,9]
[334168865,1722805925223,-497.53405895,0.00023506,9]
[334168866,1722805925234,-500.0,0.00023506,9]
[334168867,1722805925244,-1304.52,0.00023506,9]
[334168868,1722805925254,-734.42,0.00023506,9]
[334168869,1722805925264,-500.0,0.00023506,9]
[334168870,1722805925275,-500.0,0.00023506,9]
[334168871,1722805925285,-1490.63,0.00023506,9]
[334168872,1722805925295,-500.0,0.00023506,9]
[334168873,1722805925305,-651.99,0.00023506,9]
[334168874,1722805925315,-1187.98,0.00023506,9]
[334168875,1722805925324,-500.0,0.00023506,9]
[334168876,1722805925334,-500.0,0.00023506,9]
[334168877,1722805925345,-500.0,0.00023506,9]
[334168878,1722805925355,-500.0,0.00023506,9]
[334168879,1722805925364,-500.0,0.00023506,9]
[334168880,1722805925374,-500.0,0.00023506,9]
[334168881,1722805925384,-500.0,0.00023506,9]
[334168882,1722805925393,-1274.28,0.00023506,9]
[334168883,1722805925403,-1378.03,0.00023506,9]
[334168884,1722805925414,-500.0,0.00023506,9]
[334168885,1722805925424,-500.0,0.00023506,9]
[334168886,1722805925434,-842.17,0.00023506,9]
[334168887,1722805925445,-979.35,0.00023506,9]
[334168888,1722805925454,-500.0,0.00023506,9]
[334168889,1722805925465,-642.36,0.00023506,9]
[334168890,1722805925474,-615.98,0.00023506,9]
[334168891,1722805925484,-500.0,0.00023506,9]
[334168892,1722805925494,-501.85941888,0.00023506,9]
[334168893,1722805925505,-1264.35,0.00023506,9]
[334168894,1722805925515,-848.16,0.00023506,9]
[334168895,1722805925525,-500.0,0.00023506,9]
[334168896,1722805925536,-500.0,0.00023506,9]
[334168897,1722805925547,-500.0,0.00023506,9]
[334168898,1722805925557,-500.0,0.00023506,9]
[334168899,1722805925567,-500.0,0.00023506,9]
[334168900,1722805925579,-500.0,0.00023506,9]
[334168901,1722805925590,-500.0,0.00023506,9]
[334168902,1722805925601,-1209.12,0.00023506,9]
[334168903,1722805925611,-500.0,0.00023506,9]
[334168904,1722805925622,-1010.12,0.00023506,7]
[334168905,1722805925634,-1074.05,0.00023506,9]
[334168906,1722805925644,-500.0,0.00023506,9]
[334168907,1722805925655,-500.0,0.00023506,9]
[334168908,1722805925666,-2114.96,0.00023506,9]
[334168909,1722805925676,-514.07,0.00023506,9]
[334168910,1722805925686,-500.0,0.00023506,9]
[334168911,1722805925696,-1272.78,0.00023506,9]
[334168912,1722805925706,-640.2,0.00023506,9]
[334168913,1722805925715,-823.79,0.00023506,9]
[334168914,1722805925725,-500.0,0.00023506,9]
[334168915,1722805925735,-991.28,0.00023506,9]
[334168916,1722805925745,-1252.42,0.00023506,9]
[334168917,1722805925755,-636.67,0.00023506,9]
[334168918,1722805925765,-553.51,0.00023506,9]
[334168919,1722805925774,-500.0,0.00023506,9]
[334168920,1722805925784,-500.0,0.00023506,9]
[334168921,1722805925794,-500.0,0.00023506,9]
[334168922,1722805925803,-500.0,0.00023506,9]
[334168923,1722805925812,-500.0,0.00023506,9]
[334168924,1722805925822,-500.0,0.00023506,9]
[334168925,1722805925833,-500.0,0.00023506,9]
[334168926,1722805925843,-500.0,0.00023506,9]
[334168927,1722805925852,-500.0,0.00023506,9]
[334168928,1722805925864,-500.0,0.00023506,9]
[334168929,1722805925874,-608.41,0.00023506,9]
[334168930,1722805925884,-500.0,0.00023506,9]
[334168931,1722805925894,-1368.98,0.00023506,9]
[334168932,1722805925904,-632.04,0.00023506,9]
[334168933,1722805925913,-500.0,0.00023506,9]
[334168934,1722805925923,-500.0,0.00023506,9]
[334168935,1722805925932,-500.0,0.00023506,9]
[334168936,1722805925940,-500.0,0.00023506,9]
[334168937,1722805925951,-500.0,0.00023506,9]
[334168938,1722805925960,-570.88,0.00023506,9]
[334168939,1722805925970,-1262.61,0.00023506,9]
[334168940,1722805925980,-500.0,0.00023506,9]
[334168941,1722805925990,-259.76,0.00023506,9]
[334168942,1722805926000,-757.81,0.00023506,9]
[334168943,1722805926009,-500.0,0.00023506,9]
[334168944,1722805926019,-542.41,0.00023506,9]
[334168945,1722805926029,-500.0,0.00023506,9]
[334168946,1722805926039,-500.0,0.00023506,9]
[334168947,1722805926048,-500.0,0.00023506,9]
[334168948,1722805926059,-720.06,0.00023506,9]
[334168949,1722805926070,-174.0,0.00023506,9]
[334168950,1722805926079,-500.0,0.00023506,9]
[334168951,1722805926089,-500.0,0.00023506,9]
[334168952,1722805926099,-654.87,0.00023506,9]
[334168953,1722805926109,-800.42,0.00023506,9]
[334168954,1722805926118,-500.0,0.00023506,9]
[334168955,1722805926129,-500.0,0.00023506,9]
[334168956,1722805926139,-599.25,0.00023506,9]
[334168957,1722805926149,-500.0,0.00023506,9]
[334168958,1722805926159,-819.66,0.00023506,9]
[334168959,1722805926168,-555.34,0.00023506,9]
[334168960,1722805926178,-1020.58,0.00023506,9]
[334168961,1722805926188,-500.0,0.00023506,9]
[334168962,1722805926198,-759.17,0.00023506,9]
[334168963,1722805926208,-576.69,0.00023506,9]
[334168964,1722805926218,-500.0,0.00023506,9]
[334168965,1722805926228,-500.0,0.00023506,9]
[334168966,1722805926237,-500.0,0.00023506,9]
[334168967,1722805926247,-500.0,0.00023506,9]
[334168968,1722805926257,-500.0,0.00023506,9]
[334168969,1722805926267,-898.39,0.00023506,9]
[334168970,1722805926277,-500.0,0.00023506,9]
[334168971,1722805926287,-562.71,0.00023506,9]
[334168972,1722805926296,-500.0,0.00023506,9]
[334168973,1722805926306,-500.0,0.00023506,9]
[334168974,1722805926316,-500.0,0.00023506,9]
[334168975,1722805926326,-546.8,0.00023506,9]
[334168976,1722805926336,-585.93,0.00023506,9]
[334168977,1722805926345,-500.0,0.00023506,9]
[334168978,1722805926355,-500.0,0.00023506,9]
[334168979,1722805926364,-500.0,0.00023506,9]
[334168980,1722805926374,-856.54,0.00023506,9]
[334168981,1722805926384,-350.6,0.00023506,9]
[334168982,1722805926393,-865.8,0.00023506,9]
[334168983,1722805926403,-500.0,0.00023506,9]
[334168984,1722805926413,-500.0,0.00023506,9]
[334168985,1722805926422,-500.0,0.00023506,9]
[334168986,1722805926430,-171.09,0.00023506,9]
[334168987,1722805926441,-500.0,0.00023506,9]
[334168988,1722805926451,-500.0,0.00023506,9]
[334168989,1722805926461,-500.0,0.00023506,9]
[334168990,1722805926471,-1183.88,0.00023506,9]
[334168991,1722805926480,-150.0,0.00023506,9]
[334168992,1722805926489,-757.38,0.00023506,9]
[334168993,1722805926781,-750.87,0.00023506,9]
[334168994,1722805926794,-500.0,0.00023506,9]
[334168995,1722805926804,-500.0,0.00023506,9]
[334168996,1722805926814,-500.0,0.00023506,9]
[334168997,1722805926824,-1516.62,0.00023506,9]
[334168998,1722805926833,-500.0,0.00023506,9]
[334168999,1722805926843,-1355.06,0.00023506,9]
[334169000,1722805926853,-500.0,0.00023506,9]
[334169001,1722805926862,-752.11,0.00023506,9]
[334169002,1722805926871,-500.0,0.00023506,9]
[334169003,1722805926881,-500.0,0.00023506,9]
[334169004,1722805926891,-500.0,0.00023506,9]
[334169005,1722805926900,-500.0,0.00023506,9]
[334169006,1722805926910,-500.0,0.00023506,9]
[334169007,1722805926919,-500.0,0.00023506,9]
[334169008,1722805926929,-500.0,0.00023506,9]
[334169009,1722805926939,-835.14,0.00023506,9]
[334169010,1722805926949,-500.0,0.00023506,9]
[334169011,1722805926959,-356.6763688,0.00023506,9]
[334169012,1722805926970,-500.0,0.00023506,9]
[334169013,1722805926980,-500.0,0.00023506,9]
[334169014,1722805926990,-577.51,0.00023506,9]
[334169015,1722805926999,-419.44,0.00023506,9]
[334169016,1722805927009,-604.55,0.00023506,9]
[334169017,1722805927019,-500.0,0.00023506,9]
[334169018,1722805927029,-500.0,0.00023506,9]
[334169019,1722805927039,-500.0,0.00023506,9]
[334169020,1722805927048,-1049.0,0.00023506,9]
[334169021,1722805927058,-595.85,0.00023506,9]
[334169022,1722805927068,-820.31,0.00023506,9]
[334169023,1722805927077,-881.32,0.00023506,9]
[334169024,1722805927087,-500.0,0.00023506,9]
[334169025,1722805927096,-512.9,0.00023506,9]
[334169026,1722805927106,-627.89,0.00023506,9]
[334169027,1722805927116,-500.0,0.00023506,9]
[334169028,1722805927126,-1320.82,0.00023506,9]
[334169029,1722805927136,-1317.26,0.00023506,9]
[334169030,1722805927146,-500.0,0.00023506,9]
[334169031,1722805927156,-540.74,0.00023506,9]
[334169032,1722805927166,-500.0,0.00023506,9]
[334169033,1722805927175,-500.0,0.00023506,9]
[334169034,1722805927185,-500.0,0.00023506,9]
[334169035,1722805927195,-500.0,0.00023506,9]
[334169036,1722805927205,-775.64,0.00023506,9]
[334169037,1722805927214,-731.67,0.00023506,9]
[334169038,1722805927224,-500.0,0.00023506,9]
[334169039,1722805927234,-500.0,0.00023506,9]
[334169040,1722805927243,-500.0,0.00023506,9]
[334169041,1722805927253,-500.0,0.00023506,9]
[334169042,1722805927262,-500.0,0.00023506,9]
[334169043,1722805927272,-500.0,0.00023506,9]
[334169044,1722805927282,-653.66,0.00023506,9]
[334169045,1722805927292,-1198.0,0.00023506,9]
[334169046,1722805927302,-500.0,0.00023506,9]
[334169047,1722805927312,-508.48,0.00023506,9]
[334169048,1722805927322,-500.0,0.00023506,9]
[334169049,1722805927332,-500.0,0.00023506,9]
[334169050,1722805927342,-616.13,0.00023506,9]
[334169051,1722805927352,-500.0,0.00023506,9]
[334169052,1722805927361,-500.0,0.00023506,9]
[334169053,1722805927371,-500.0,0.00023506,9]
[334169054,1722805927382,-506.79,0.00023506,9]
[334169055,1722805927392,-500.0,0.00023506,9]
[334169056,1722805927402,-907.97,0.00023506,9]
[334169057,1722805927412,-923.23,0.00023506,9]
[334169058,1722805927422,-500.0,0.00023506,9]
[334169059,1722805927431,-500.0,0.00023506,9]
[334169060,1722805927442,-500.0,0.00023506,9]
[334169061,1722805927451,-500.0,0.00023506,9]
[334169062,1722805927461,-1158.33,0.00023506,9]
[334169063,1722805927472,-500.0,0.00023506,9]
[334169064,1722805927482,-500.0,0.00023506,9]
[334169065,1722805927492,-1060.73,0.00023506,9]
[334169066,1722805927502,-500.0,0.00023506,9]
[334169067,1722805927511,-500.0,0.00023506,9]
[334169068,1722805927521,-500.0,0.00023506,9]
[334169069,1722805927530,-702.62,0.00023506,9]
[334169070,1722805927539,-500.0,0.00023506,9]
[334169071,1722805927549,-511.78,0.00023506,9]
[334169072,1722805927558,-500.0,0.00023506,9]
[334169073,1722805927568,-500.0,0.00023506,9]
[334169074,1722805927578,-508.8,0.00023506,9]
[334169075,1722805927593,-500.0,0.00023506,9]
[334169076,1722805927603,-1106.81,0.00023506,9]
[334169077,1722805927613,-500.0,0.00023506,9]
[334169078,1722805927623,-1220.67,0.00023506,9]
[334169079,1722805927632,-500.0,0.00023506,9]
[334169080,1722805927642,-688.53,0.00023506,9]
[334169081,1722805927652,-501.56353358,0.00023506,9]
[334169082,1722805927663,-605.88,0.00023506,9]
[334169083,1722805927673,-944.03,0.00023506,9]
[334169084,1722805927683,-1410.69,0.00023506,9]
[334169085,1722805927693,-500.0,0.00023506,9]
[334169086,1722805927703,-500.0,0.00023506,9]
[334169087,1722805927713,-270.08179506,0.00023506,9]
[334169088,1722805927722,-500.0,0.00023506,9]
[334169089,1722805927731,-508.42,0.00023506,9]
[334169090,1722805927740,-500.0,0.00023506,9]
[334169091,1722805927750,-697.02,0.00023506,9]
[334169092,1722805927759,-200.0,0.00023506,7]
[334169093,1722805927769,-1251.97,0.00023506,9]
[334169094,1722805927779,-500.0,0.00023506,9]
[334169095,1722805927789,-500.0,0.00023506,9]
[334169096,1722805927799,-500.0,0.00023506,9]
[334169097,1722805927809,-500.0,0.00023506,9]
[334169098,1722805927819,-500.0,0.00023506,9]
[334169099,1722805927829,-750.94,0.00023506,9]
[334169100,1722805927839,-500.0,0.00023506,9]
[334169101,1722805927849,-500.0,0.00023506,9]
[334169102,1722805927858,-500.0,0.00023506,9]
[334169103,1722805927868,-500.0,0.00023506,9]
[334169104,1722805927878,-947.68,0.00023506,9]
[334169105,1722805927888,-958.7,0.00023506,9]
[334169106,1722805927898,-500.0,0.00023506,9]
[334169107,1722805927907,-500.0,0.00023506,9]
[334169108,1722805927916,-500.0,0.00023506,9]
[334169109,1722805927926,-500.0,0.00023506,9]
[334169110,1722805927935,-500.0,0.00023506,9]
[334169111,1722805927945,-500.0,0.00023506,9]
[334169112,1722805927955,-500.0,0.00023506,9]
[334169113,1722805927964,-1284.92,0.00023506,9]
[334169114,1722805927974,-500.0,0.00023506,9]
[334169115,1722805927984,-500.0,0.00023506,9]
[334169116,1722805927993,-500.0,0.00023506,9]
[334169117,1722805928003,-696.32,0.00023506,9]
[334169118,1722805928013,-500.0,0.00023506,9]
[334169119,1722805928023,-604.31,0.00023506,9]
[334169120,1722805928032,-553.86,0.00023506,9]
[334169121,1722805928042,-500.0,0.00023506,9]
[334169122,1722805928052,-500.0,0.00023506,9]
[334169123,1722805928062,-500.0,0.00023506,9]
[334169124,1722805928071,-500.0,0.00023506,9]
[334169125,1722805928080,-498.0,0.00023506,9]
[334169126,1722805928090,-880.04,0.00023506,9]
[334169127,1722805928099,-500.0,0.00023506,9]
[334169128,1722805928108,-1586.21,0.00023506,9]
[334169129,1722805928118,-500.0,0.00023506,9]
[334169130,1722805928127,-500.0,0.00023506,9]
[334169131,1722805928137,-500.0,0.00023506,9]
[334169132,1722805928146,-500.0,0.00023506,9]
[334169133,1722805928156,-500.0,0.00023506,9]
[334169134,1722805928166,-597.03,0.00023506,9]
[334169135,1722805928176,-528.32,0.00023506,9]
[334169136,1722805928186,-662.94,0.00023506,9]
[334169137,1722805928196,-500.0,0.00023506,9]
[334169138,1722805928205,-500.0,0.00023506,9]
[334169139,1722805928214,-500.0,0.00023506,9]
[334169140,1722805928224,-213.3175468,0.00023506,2]
[334169141,1722805928234,-717.42,0.00023506,9]
[334169142,1722805928244,-692.71,0.00023506,9]
[334169143,1722805928253,-500.0,0.00023506,9]
[334169144,1722805928263,-625.21,0.00023506,9]
[334169145,1722805928273,-500.0,0.00023506,9]
[334169146,1722805928282,-500.0,0.00023506,9]
[334169147,1722805928292,-1119.53,0.00023506,9]
[334169148,1722805928301,-799.08,0.00023506,9]
[334169149,1722805928310,-409.65672214,0.00023506,9]
[334169150,1722805928321,-1250.85,0.00023506,9]
[334169151,1722805928332,-500.0,0.00023506,9]
[334169152,1722805928342,-500.0,0.00023506,9]
[334169153,1722805928351,-507.24,0.00023506,9]
[334169154,1722805928360,-500.0,0.00023506,9]
[334169155,1722805928370,-500.0,0.00023506,9]
[334169156,1722805928379,-500.0,0.00023506,9]
[334169157,1722805928388,-711.47,0.00023506,9]
[334169158,1722805928397,-500.0,0.00023506,9]
[334169159,1722805928407,-554.17,0.00023506,9]
[334169160,1722805928417,-500.0,0.00023506,9]
[334169161,1722805928427,-1125.3,0.00023506,9]
[334169162,1722805928438,-977.26,0.00023506,9]
[334169163,1722805928448,-500.0,0.00023506,9]
[334169164,1722805928458,-500.0,0.00023506,9]
[334169165,1722805928468,-650.86,0.00023506,9]
[334169166,1722805928478,-500.0,0.00023506,9]
[334169167,1722805928488,-552.74,0.00023506,9]
[334169168,1722805928497,-598.03,0.00023506,9]
[334169169,1722805928507,-500.0,0.00023506,9]
[334169170,1722805928517,-500.0,0.00023506,9]
[334169171,1722805928527,-766.92,0.00023506,9]
[334169172,1722805928536,-1029.2,0.00023506,9]
[334169173,1722805928546,-362.75,0.00023506,9]
[334169174,1722805928556,-500.0,0.00023506,9]
[334169175,1722805928565,-500.0,0.00023506,9]
[334169176,1722805928574,-1070.84,0.00023506,9]
[334169177,1722805928589,-500.0,0.00023506,9]
[334169178,1722805928598,-1025.12,0.00023506,9]
[334169179,1722805928607,-1123.65,0.00023506,9]
[334169180,1722805928617,-500.0,0.00023506,9]
[334169181,1722805928627,-500.0,0.00023506,9]
[334169182,1722805928636,-935.9,0.00023506,9]
[334169183,1722805928645,-503.18,0.00023506,9]
[334169184,1722805928655,-967.76,0.00023506,9]
[334169185,1722805928675,-683.02,0.00023506,9]
[334169186,1722805928685,-989.88,0.00023506,9]
[334169187,1722805928695,-500.0,0.00023506,9]
[334169188,1722805928704,-500.0,0.00023506,9]
[334169189,1722805928714,-500.0,0.00023506,9]
[334169190,1722805928723,-500.0,0.00023506,9]
[334169191,1722805928734,-665.55,0.00023506,9]
[334169192,1722805928743,-1317.39,0.00023506,9]
[334169193,1722805928752,-707.71,0.00023506,9]
[334169194,1722805928761,-1079.16,0.00023506,9]
[334169195,1722805928771,-785.29,0.00023506,9]
[334169196,1722805928780,-615.98,0.00023506,9]
[334169197,1722805928789,-609.26,0.00023506,9]
[334169198,1722805928798,-500.0,0.00023506,9]
[334169199,1722805928808,-500.0,0.00023506,9]
[334169200,1722805928817,-791.87,0.00023506,9]
[334169201,1722805928826,-1134.62,0.00023506,9]
[334169202,1722805928835,-500.0,0.00023506,9]
[334169203,1722805928845,-500.0,0.00023506,9]
[334169204,1722805928855,-500.0,0.00023506,9]
[334169205,1722805928865,-500.0,0.00023506,9]
[334169206,1722805928874,-684.59,0.00023506,9]
[334169207,1722805928888,-500.0,0.00023506,9]
[334169208,1722805928897,-500.0,0.00023506,9]
[334169209,1722805928907,-500.0,0.00023506,9]
[334169210,1722805928916,-807.51,0.00023506,9]
[334169211,1722805928925,-1911.59,0.00023506,9]
[334169212,1722805928935,-500.0,0.00023506,9]
[334169213,1722805928944,-500.0,0.00023506,9]
[334169214,1722805928954,-500.0,0.00023506,9]
[334169215,1722805928963,-500.0,0.00023506,9]
[334169216,1722805928972,-500.0,0.00023506,9]
[334169217,1722805928982,-767.21,0.00023506,9]
[334169218,1722805928992,-3835.47,0.00023506,9]
[334169219,1722805929002,-696.93,0.00023506,9]
[334169220,1722805929012,-1057.28,0.00023506,9]
[334169221,1722805929021,-948.14,0.00023506,9]
[334169222,1722805929031,-970.01,0.00023506,9]
[334169223,1722805929040,-500.0,0.00023506,9]
[334169224,1722805929050,-1408.64,0.00023506,9]
[334169225,1722805929059,-901.07,0.00023506,9]
[334169226,1722805929069,-1514.72,0.00023506,9]
[334169227,1722805929078,-500.0,0.00023506,9]
[334169228,1722805929087,-500.0,0.00023506,9]
[334169229,1722805929097,-500.0,0.00023506,9]
[334169230,1722805929107,-500.0,0.00023506,9]
[334169231,1722805929118,-1322.2,0.00023506,9]
[334169232,1722805929128,-523.43,0.00023506,9]
[334169233,1722805929138,-792.65,0.00023506,9]
[334169234,1722805929148,-1221.82,0.00023506,9]
[334169235,1722805929158,-1697.88,0.00023506,9]
[334169236,1722805929167,-500.0,0.00023506,9]
[334169237,1722805929181,-728.07,0.00023506,9]
[334169238,1722805929190,-1039.84,0.00023506,9]
[334169239,1722805929199,-500.0,0.00023506,9]
[334169240,1722805929209,-500.0,0.00023506,9]
[334169241,1722805929218,-1478.14,0.00023506,9]
[334169242,1722805929227,-1348.33,0.00023506,9]
[334169243,1722805929236,-839.23,0.00023506,9]
[334169244,1722805929246,-500.0,0.00023506,9]
[334169245,1722805929256,-500.0,0.00023506,9]
[334169246,1722805929266,-991.75,0.00023506,9]
[334169247,1722805929275,-1264.59,0.00023506,9]
[334169248,1722805929284,-579.1,0.00023506,9]
[334169249,1722805929293,-1705.54,0.00023506,9]
[334169250,1722805929301,-500.0,0.00023506,9]
[334169251,1722805929311,-500.0,0.00023506,9]
[334169252,1722805929320,-2848.3,0.00023506,9]
[334169253,1722805929329,-2193.06,0.00023506,9]
[334169254,1722805929339,-2998.86,0.00023506,9]
[334169255,1722805929348,-10229.78,0.00023506,9]
[334169256,1722805929358,-666.35,0.00023506,9]
[334169257,1722805929367,-2996.4,0.00023506,9]
[334169258,1722805929377,-500.0,0.00023506,9]
[334169259,1722805929387,-500.0,0.00023506,9]
[334169260,1722805929396,-963.29,0.00023506,9]
[334169261,1722805929405,-1351.1,0.00023506,9]
[334169262,1722805929414,-500.0,0.00023506,9]
[334169263,1722805929423,-1069.8,0.00023506,9]
[334169264,1722805929432,-4507.33,0.00023506,9]
[334169265,1722805929442,-500.0,0.00023506,9]
[334169266,1722805929451,-844.23,0.00023506,9]
[334169267,1722805929461,-1472.08,0.00023506,9]
[334169268,1722805929471,-2076.15,0.00023506,9]
[334169269,1722805929480,-2525.21,0.00023506,9]
[334169270,1722805929490,-1167.47,0.00023506,9]